bitfinex/quotes_SOLUSD_20240729
["timestamp","ask_amount","ask_price","bid_price","bid_amount"]
[1722265032998,16.01,187.79,187.62,20.17]
[1722265033422,16.01,187.77,187.62,20.0]
[1722265033932,16.01,187.77,187.68,5.3281]
[1722265034136,5.3263,187.75,187.68,5.3281]
[1722265034319,16.01,187.79,187.62,20.0]
[1722265034618,16.01,187.79,187.67,5.3283]
[1722265034619,5.3265,187.74,187.67,5.3283]
[1722265035200,5.3271,187.72,187.63,20.0]
[1722265035409,29.3231,187.79,187.66,5.3286]
[1722265035714,5.3271,187.72,187.65,5.3289]
[1722265035908,5.3273,187.72,187.65,5.3289]
[1722265036107,27.55,187.76,187.63,1.06549259]
[1722265036401,5.3259,187.76,187.69,5.3279]
[1722265036605,5.3262,187.75,187.67,5.3282]
[1722265037110,16.01,187.79,187.67,5.3282]
[1722265037314,16.01,187.76,187.68,5.328]
[1722265037510,5.3262,187.75,187.62,20.0]
[1722265037716,5.3259,187.76,187.69,5.3278]
[1722265038005,41.0322,187.8,187.62,20.0]
[1722265038006,5.3256,187.77,187.7,5.3274]
[1722265038421,43.56,187.8,187.71,5.3272]
[1722265038422,5.3254,187.78,187.71,5.3272]
[1722265038899,43.56,187.8,187.73,5.3265]
[1722265039337,5.3251,187.79,187.71,15.5771]
[1722265039626,5.3251,187.79,187.71,20.9044]
[1722265039627,5.3253,187.79,187.71,20.9044]
[1722265039795,16.01,187.79,187.71,15.5771]
[1722265039994,5.326,187.76,187.71,15.5771]
[1722265040413,16.01,187.79,187.71,15.5771]
[1722265040414,5.3262,187.75,187.71,15.5771]
[1722265040616,16.01,187.79,187.71,15.5771]
[1722265041407,5.3257,187.77,187.71,15.5771]
[1722265041808,5.3253,187.79,187.72,5.327]
[1722265042013,5.3253,187.78,187.71,15.5771]
[1722265044835,43.56,187.86,187.76,5.3259]
[1722265045005,5.3236,187.84,187.72,7.50264467]
[1722265045327,5.3236,187.84,187.76,5.3256]
[1722265045501,5.324,187.83,187.77,5.3256]
[1722265046015,5.324,187.83,187.72,7.5025964]
[1722265046216,5.3242,187.82,187.74,5.3262]
[1722265046528,5.3242,187.82,187.72,7.5025964]
[1722265046529,43.56,187.82,187.72,11.7647]
[1722265046732,5.3263,187.75,187.72,6.4377]
[1722265046930,27.55,187.78,187.72,6.4377]
[1722265047227,27.55,187.82,187.72,6.4377]
[1722265047524,32.8742,187.82,187.74,5.3262]
[1722265047732,27.55,187.82,187.72,6.4377]
[1722265047930,5.3247,187.81,187.72,6.4377]
[1722265048229,27.55,187.82,187.72,6.4377]
[1722265048418,5.3256,187.78,187.72,6.4377]
[1722265048638,5.3251,187.79,187.72,11.7647]
[1722265048825,5.3251,187.79,187.72,6.4377]
[1722265049027,43.56,187.82,187.72,6.4377]
[1722265049222,56.8708,187.82,187.72,6.4377]
[1722265049739,5.3259,187.76,187.72,6.4377]
[1722265049904,56.8708,187.82,187.72,6.4377]
[1722265050111,27.55,187.82,187.72,6.4377]
[1722265050335,16.01,187.85,187.72,6.4377]
[1722265050336,5.324,187.83,187.76,5.3259]
[1722265050516,5.3238,187.84,187.77,5.3256]
[1722265050705,13.3079,187.86,187.72,6.4377]
[1722265051235,5.3239,187.84,187.77,5.3255]
[1722265051412,27.55,187.96,187.84,5.3235]
[1722265051742,27.55,187.96,187.83,5.3238]
[1722265051743,5.322,187.9,187.83,5.3238]
[1722265052033,5.3225,187.88,187.79,20.0]
[1722265052213,5.3223,187.89,187.82,5.3239]
[1722265052418,5.3225,187.88,187.82,5.3239]
[1722265052733,13.3015,187.95,187.81,13.3112]
[1722265053029,5.3219,187.9,187.84,5.3236]
[1722265053210,5.3216,187.92,187.86,5.323]
[1722265053418,27.55,187.96,187.84,5.3236]
[1722265053618,5.3217,187.91,187.84,5.3236]
[1722265053833,5.3217,187.91,187.85,5.3232]
[1722265054016,5.3217,187.91,187.83,13.3092]
[1722265054017,5.3217,187.91,187.84,5.3236]
[1722265054212,27.55,187.96,187.86,13.3071]
[1722265054409,27.55,187.96,187.86,18.6301]
[1722265054410,5.3214,187.92,187.86,18.6301]
[1722265055032,5.3209,187.94,187.87,5.3227]
[1722265055630,5.3225,187.89,187.84,15.8967]
[1722265055927,16.01,187.91,187.84,15.8967]
[1722265056152,40.8535,187.92,187.84,15.8967]
[1722265056326,5.3225,187.89,187.84,15.8967]
[1722265056528,5.3225,187.88,187.84,15.8967]
[1722265056831,5.3222,187.89,187.84,15.8967]
[1722265057009,5.3219,187.91,187.84,15.8967]
[1722265057210,5.3221,187.9,187.84,15.8967]
[1722265057407,5.3217,187.91,187.84,34.5292]
[1722265057725,5.3217,187.91,187.84,29.2058]
[1722265058040,5.3214,187.92,187.86,5.323]
[1722265058215,5.3217,187.91,187.84,34.5294]
[1722265058415,5.3217,187.91,187.85,6.558]
[1722265058610,43.56,187.96,187.85,11.8811]
[1722265058917,5.3214,187.93,187.87,5.3226]
[1722265059132,5.3206,187.95,187.89,5.3221]
[1722265059516,27.55,187.96,187.87,5.3227]
[1722265059733,27.55,187.96,187.87,13.3068]
[1722265059950,27.55,187.96,187.85,6.558]
[1722265060250,0.7828759,187.97,187.86,1.06427003]
[1722265060422,6.1028759,187.97,187.91,5.3214]
[1722265061024,6.1028759,187.97,187.92,15.8134]
[1722265061225,0.7828759,187.97,187.92,15.8134]
[1722265061448,0.7828759,187.97,187.92,21.1347]
[1722265061620,0.7828759,187.97,187.92,15.8134]
[1722265061817,5.3206,187.95,187.92,15.8134]
[1722265062132,382.4,188.1,187.95,5.3203]
[1722265062321,43.56,188.08,187.94,5.3206]
[1722265062524,27.55,188.04,187.93,6.3846]
[1722265062722,27.55,188.04,187.93,19.6872]
[1722265062925,27.55,188.04,187.93,25.0081]
[1722265063124,27.55,188.04,187.93,6.3846]
[1722265063125,5.3202,187.96,187.93,6.3846]
[1722265063318,27.55,188.0,187.93,6.3846]
[1722265063544,27.55,187.96,187.88,6.0242]
[1722265063944,5.3219,187.9,187.88,6.0242]
[1722265064431,5.3225,187.88,187.87,15.8694]
[1722265064737,13.3056,187.9,187.83,6.4198]
[1722265064928,5.3234,187.85,187.83,6.4198]
[1722265065240,5.3231,187.86,187.83,6.4198]
[1722265065444,29.3156,187.9,187.83,6.4198]
[1722265065654,26.7729,187.95,187.82,16.6549]
[1722265065655,5.3239,187.83,187.82,16.6549]
[1722265065814,5.3237,187.84,187.82,16.6549]
[1722265066017,5.3233,187.86,187.82,16.6549]
[1722265066441,29.3148,187.91,187.82,21.9791]
[1722265066640,16.01,187.91,187.82,16.6549]
[1722265066845,16.01,187.9,187.82,16.6549]
[1722265067624,5.3231,187.86,187.82,16.6549]
[1722265068027,5.3228,187.88,187.82,16.6549]
[1722265068226,27.55,187.92,187.82,29.9654]
[1722265068622,27.55,187.96,187.85,13.3084]
[1722265068923,16.01,187.95,187.82,16.6549]
[1722265069122,16.01,187.95,187.84,5.3236]
[1722265069428,16.01,187.95,187.84,6.1749]
[1722265069636,26.5903,188.04,187.89,13.3053]
[1722265069933,16.01,188.03,187.89,16.5551]
[1722265070320,294.02406438,188.09,187.91,13.3039]
[1722265070532,27.55,188.05,187.91,13.3039]
[1722265070941,5.3197,187.98,187.91,13.3039]
[1722265071123,16.01,188.02,187.91,13.3039]
[1722265071456,16.01,188.02,187.9,5.3217]
[1722265071457,27.55,188.01,187.9,5.3218]
[1722265071749,16.01,188.0,187.91,1.06416037]
[1722265071931,27.55,188.01,187.91,13.3038]
[1722265072126,27.55,188.01,187.94,5.3208]
[1722265072320,5.3191,188.0,187.93,5.3211]
[1722265072524,5.3191,188.0,187.94,11.7335]
[1722265072748,5.3195,187.99,187.94,6.4128]
[1722265073120,5.3191,188.0,187.94,11.7336]
[1722265073317,32.8688,188.01,187.94,11.7336]
[1722265073523,5.3191,188.01,187.94,11.7336]
[1722265073834,43.56,188.05,187.95,5.3203]
[1722265074146,43.56,188.05,187.94,19.7145]
[1722265074147,5.3189,188.01,187.94,25.0353]
[1722265074350,5.3192,188.0,187.94,25.0353]
[1722265075043,5.3188,188.02,187.95,5.3202]
[1722265075238,43.56,188.05,187.95,5.3202]
[1722265075239,5.3189,188.01,187.95,5.3202]
[1722265075554,5.318,188.04,187.97,5.3199]
[1722265075946,32.8677,188.05,187.97,13.2999]
[1722265076434,16.01,188.09,187.99,5.3192]
[1722265077047,16.01,188.09,188.0,15.785]
[1722265077359,5.3179,188.05,188.0,15.785]
[1722265077548,5.3176,188.06,188.0,15.785]
[1722265077741,5.3177,188.05,188.0,15.785]
[1722265077943,16.01,188.09,188.0,15.785]
[1722265078455,5.3173,188.07,188.01,12.4787782]
[1722265078682,287.35,188.15,188.01,12.4787782]
[1722265078683,13.2896,188.12,188.01,6.0964]
[1722265078971,13.2896,188.12,188.02,1.06350716]
[1722265079264,16.01,188.1,188.02,1.06350716]
[1722265079446,5.3174,188.07,188.01,7.15997619]
[1722265079763,5.3174,188.07,188.02,1.06357617]
[1722265079950,5.3168,188.09,188.02,6.38207617]
[1722265080270,5.3168,188.09,188.01,6.0964]
[1722265080271,5.3169,188.08,188.01,11.415]
[1722265080446,43.56,188.11,188.01,6.0964]
[1722265080642,5.3185,188.02,188.01,6.0964]
[1722265080861,43.56,188.07,188.01,6.0964]
[1722265080862,5.3181,188.04,188.01,6.0964]
[1722265081249,5.3188,188.01,188.0,15.4202]
[1722265081562,5.3186,188.02,187.96,6.2742]
[1722265081938,5.3187,188.02,187.96,6.2742]
[1722265082148,5.3194,188.0,187.96,6.2742]
[1722265082478,56.8535,188.07,187.96,6.2742]
[1722265082479,5.3189,188.01,187.96,6.2742]
[1722265082784,5.3194,187.99,187.93,13.3021]
[1722265082973,5.3191,188.01,187.94,5.3208]
[1722265083276,5.3175,188.06,187.96,13.3005]
[1722265083488,5.3178,188.05,187.99,5.3194]
[1722265083856,27.55,188.1,188.0,1.06374682]
[1722265083857,5.3171,188.08,188.0,1.06374682]
[1722265084074,5.3171,188.08,188.01,11.7643]
[1722265084272,5.3171,188.08,188.02,21.08]
[1722265084486,5.3166,188.09,188.03,6.38170476]
[1722265084779,27.55,188.14,188.04,5.3179]
[1722265084954,5.3163,188.11,188.05,5.3177]
[1722265085291,5.3166,188.09,188.03,13.295]
[1722265085573,43.56,188.14,188.02,15.7615]
[1722265085953,5.3175,188.06,188.02,15.7615]
[1722265086155,5.3171,188.07,188.02,15.7615]
[1722265086370,16.01,188.12,188.02,15.7615]
[1722265086588,5.3168,188.09,188.02,15.7615]
[1722265086882,5.3167,188.09,188.03,13.2955]
[1722265087179,27.55,188.14,188.02,15.7615]
[1722265087180,5.3172,188.07,188.02,15.7615]
[1722265087356,43.56,188.1,188.02,14.4798]
[1722265087562,5.3181,188.04,188.02,14.4798]
[1722265087784,5.3174,188.06,188.02,14.4798]
[1722265087957,13.2939,188.06,187.93,6.2724]
[1722265088163,13.2939,188.06,187.94,20.0]
[1722265088362,29.3015,188.09,187.97,5.3198]
[1722265088573,5.3186,188.02,187.95,18.6215]
[1722265088758,5.3182,188.04,187.97,5.3199]
[1722265088970,5.3185,188.02,187.96,5.3202]
[1722265089183,5.3185,188.02,187.95,13.3012]
[1722265089184,27.55,188.06,187.98,13.299]
[1722265089359,32.8676,188.06,187.99,6.38303462]
[1722265089553,27.55,188.06,187.98,13.299]
[1722265089979,5.3182,188.04,187.98,1.06378847]
[1722265090188,5.3183,188.03,187.93,6.2724]
[1722265090365,5.3185,188.02,187.96,13.3004]
[1722265090573,5.3189,188.01,187.94,21.2333]
[1722265090770,5.3192,188.0,187.94,15.9125]
[1722265091164,56.8537,188.06,187.94,15.9125]
[1722265091462,5.3196,187.99,187.94,15.9125]
[1722265091680,5.3194,188.0,187.94,16.97649835]
[1722265091982,5.3194,187.99,187.94,16.97649835]
[1722265092178,45.0,188.05,187.94,21.2333]
[1722265092481,40.8437,188.06,187.95,13.3013]
[1722265092687,5.3185,188.03,187.96,5.32]
[1722265093073,5.3187,188.02,187.95,13.3013]
[1722265093381,5.3189,188.01,187.95,18.6218]
[1722265093583,5.3186,188.02,187.95,18.6218]
[1722265093965,16.01,188.03,187.94,15.9125]
[1722265094399,5.3197,187.98,187.94,15.9125]
[1722265094577,16.01,188.03,187.94,15.9125]
[1722265095084,26.5703,188.19,187.95,1.06404941]
[1722265095291,27.55,188.12,187.94,16.97632519]
[1722265095473,5.3183,188.03,187.96,18.6202]
[1722265095669,5.3181,188.04,187.97,5.3197]
[1722265096007,27.55,188.12,187.99,13.2985]
[1722265096157,5.3168,188.09,188.02,5.3185]
[1722265096363,5.3172,188.07,188.01,5.3188]
[1722265096565,5.3183,188.03,187.95,13.3008]
[1722265096789,5.3183,188.03,187.96,5.32]
[1722265096982,5.3183,188.03,187.95,13.3008]
[1722265097378,29.3023,188.08,187.95,14.36456113]
[1722265097379,5.3186,188.02,187.95,14.36456113]
[1722265097569,5.3186,188.02,187.95,13.3008]
[1722265097769,5.3183,188.03,187.96,5.32]
[1722265097985,5.3183,188.03,187.97,5.3198]
[1722265098187,27.55,188.08,187.98,13.299]
[1722265098369,43.56,188.08,187.98,13.299]
[1722265098694,13.2901,188.11,188.01,13.2969]
[1722265098862,27.55,188.13,188.03,6.1538]
[1722265099266,5.3179,188.05,187.98,19.4529]
[1722265099495,5.3181,188.04,187.98,24.7723]
[1722265099793,13.291,188.1,187.98,11.4734]
[1722265099794,27.55,188.09,187.98,11.4734]
[1722265100088,5.3185,188.03,187.98,6.1538]
[1722265100287,5.3186,188.02,187.98,6.1538]
[1722265100664,5.3182,188.04,187.98,6.1538]
[1722265100886,5.3184,188.03,187.98,6.1538]
[1722265101590,5.3186,188.02,187.98,6.1538]
[1722265101896,0.17,188.07,187.98,6.1538]
[1722265101897,5.3183,188.03,187.98,6.1538]
[1722265102192,16.01,188.08,187.98,19.4524]
[1722265102484,5.3178,188.05,187.99,5.3192]
[1722265102879,5.318,188.04,187.98,24.772]
[1722265103288,5.3177,188.05,187.99,6.38310396]
[1722265103472,5.3177,188.05,187.98,24.772]
[1722265103968,5.3177,188.05,187.99,6.38300556]
[1722265104191,5.318,188.04,187.99,6.38300556]
[1722265104369,16.01,188.08,187.98,24.772]
[1722265104574,5.318,188.04,187.98,24.772]
[1722265104872,5.3186,188.02,187.98,6.1538]
[1722265105086,16.01,188.06,187.98,6.1538]
[1722265105482,5.319,188.01,187.95,13.3013]
[1722265106304,21.3285,188.02,187.95,13.3013]
[1722265106503,21.3285,188.02,187.96,5.3202]
[1722265106797,16.01,188.02,187.95,13.3013]
[1722265106997,5.3191,188.0,187.95,13.3013]
[1722265107198,5.3189,188.01,187.95,13.3013]
[1722265107375,5.3191,188.0,187.95,13.3013]
[1722265107574,16.01,188.04,187.95,13.3013]
[1722265107774,16.01,188.02,187.94,15.9125]
[1722265107976,5.3196,187.99,187.94,15.9125]
[1722265108392,16.01,188.02,187.93,6.2267]
[1722265108393,5.3201,187.97,187.93,6.2267]
[1722265108812,5.3196,187.99,187.93,6.2267]
[1722265109187,5.3196,187.99,187.93,11.5477]
[1722265109401,5.3197,187.98,187.93,6.2267]
[1722265109808,260.5828759,188.16,188.01,5.3185]
[1722265110101,27.55,188.13,188.0,16.2407]
[1722265110279,27.55,188.09,188.0,16.2407]
[1722265110476,5.3177,188.05,188.0,16.2407]
[1722265110905,5.318,188.04,188.0,16.2407]
[1722265111079,13.2893,188.12,188.01,13.2969]
[1722265111279,29.8174,188.07,188.01,18.6155]
[1722265111505,5.3177,188.05,188.0,16.2407]
[1722265112087,29.8174,188.07,188.01,5.3187]
[1722265113110,24.5,188.07,188.03,5.3182]
[1722265113407,27.56,188.12,188.03,13.2955]
[1722265113585,5.3168,188.08,188.03,13.2955]
[1722265113786,5.3172,188.07,188.0,34.8574]
[1722265113982,5.3176,188.06,188.0,29.5385]
[1722265114210,5.318,188.05,188.0,16.2407]
[1722265114400,5.3181,188.04,188.0,16.2407]
[1722265114600,5.3183,188.03,188.0,16.2407]
[1722265115105,5.3183,188.03,187.97,5.3199]
[1722265116085,5.318,188.04,187.98,5.3197]
[1722265116283,27.56,188.08,187.99,13.2983]
[1722265116496,14.91257899,188.07,188.01,5.3188]
[1722265116713,27.56,188.08,187.99,13.2983]
[1722265116914,19.19095798,188.15,188.0,23.94242166]
[1722265117095,6.29336371,188.16,188.06,13.2929]
[1722265117096,0.7828759,188.16,188.06,13.2929]
[1722265117289,5.3155,188.13,188.06,18.6101]
[1722265117495,5.3158,188.12,188.06,18.6103]
[1722265117705,5.316,188.11,188.02,13.2957]
[1722265117905,16.01,188.15,188.03,21.06337247]
[1722265118108,5.3157,188.12,188.05,18.612]
[1722265118310,28.3428759,188.16,188.07,5.3171]
[1722265118490,0.7828759,188.16,188.09,13.2914]
[1722265118894,0.7828759,188.16,188.1,5.316]
[1722265119094,6.0975759,188.16,188.1,5.316]
[1722265119391,16.01,188.15,188.1,5.316]
[1722265119592,0.7828759,188.16,188.08,5.3168]
[1722265120119,5.316,188.12,188.06,5.3173]
[1722265120310,5.3154,188.14,188.07,6.38040196]
[1722265120508,16.01,188.13,188.04,5.3179]
[1722265120704,5.3172,188.07,188.0,22.7087]
[1722265121128,16.01,188.11,188.0,22.7087]
[1722265121129,5.3175,188.06,188.0,22.7087]
[1722265121327,5.3177,188.05,188.0,22.7087]
[1722265121536,5.318,188.04,187.98,13.2986]
[1722265122227,16.01,188.05,187.98,13.2986]
[1722265122403,16.01,188.05,187.95,22.6657]
[1722265122605,16.01,188.07,187.95,27.986]
[1722265122805,5.3188,188.02,187.95,27.986]
[1722265123312,5.3188,188.02,187.96,5.3202]
[1722265123519,5.3188,188.02,187.95,27.9862]
[1722265123833,5.3188,188.01,187.95,22.6657]
[1722265124030,5.3185,188.03,187.96,5.3202]
[1722265124327,82.32596436,188.06,187.96,1.0639534]
[1722265124519,8.28324129,188.06,188.05,5.3177]
[1722265125308,8.28324129,188.06,188.05,5.4877]
[1722265126029,8.28324129,188.06,188.05,6.38098024]
[1722265126222,8.28324129,188.06,188.05,6.55098024]
[1722265126528,8.28324129,188.06,188.05,5.3177]
[1722265126729,8.28324129,188.06,188.0,29.8233]
[1722265127035,8.28324129,188.06,188.02,5.3185]
[1722265127209,8.28324129,188.06,188.0,29.8233]
[1722265127409,8.28324129,188.06,188.03,13.2956]
[1722265127732,8.28324129,188.06,188.04,1.06342829]
[1722265127907,8.28324129,188.06,188.05,5.3177]
[1722265128517,0.7828759,188.16,188.06,15.0284]
[1722265128719,5.3149,188.15,188.08,5.3166]
[1722265128935,0.7828759,188.16,188.08,1.06315121]
[1722265129232,0.7828759,188.16,188.07,13.2925]
[1722265129436,5.3163,188.1,188.05,6.0118]
[1722265129607,29.2978,188.15,188.01,21.1817]
[1722265129808,5.3168,188.09,188.01,21.1817]
[1722265130010,45.0,188.14,188.0,6.3152]
[1722265130011,16.01,188.08,188.0,6.3152]
[1722265130339,40.8495,188.12,188.0,6.3152]
[1722265130630,40.8495,188.12,188.02,5.3185]
[1722265130631,5.3166,188.09,188.02,5.3185]
[1722265130933,16.01,188.08,188.0,11.634]
[1722265131437,5.3181,188.04,187.97,5.3197]
[1722265131611,5.3181,188.04,187.95,35.3532]
[1722265131809,5.3181,188.04,187.97,5.3199]
[1722265132004,5.3181,188.04,187.98,1.06381196]
[1722265132432,5.3184,188.03,187.96,6.38401479]
[1722265132636,5.318,188.04,187.98,5.3196]
[1722265132812,5.3183,188.03,187.96,1.06381479]
[1722265133015,5.3186,188.02,187.95,40.6735]
[1722265133233,5.3186,188.02,187.95,24.8103]
[1722265133739,43.57,188.08,187.96,5.3201]
[1722265133740,5.3183,188.03,187.96,5.3201]
[1722265133927,5.3179,188.05,187.97,5.3198]
[1722265134111,5.3179,188.05,187.98,5.3197]
[1722265134633,5.3179,188.05,187.97,5.3199]
[1722265134634,5.3183,188.03,187.97,5.3199]
[1722265134935,5.3185,188.02,187.95,24.8103]
[1722265135720,16.01,188.05,187.95,13.3009]
[1722265135941,5.3192,188.0,187.94,5.3208]
[1722265136727,5.3194,187.99,187.92,31.54100951]
[1722265136937,5.3194,187.99,187.93,5.3211]
[1722265137126,0.34,188.04,187.94,5.3208]
[1722265137127,5.3191,188.01,187.94,5.3208]
[1722265137338,5.3186,188.02,187.95,5.3204]
[1722265137645,16.01,188.03,187.95,5.3203]
[1722265137832,16.01,188.08,188.0,6.4795]
[1722265138034,5.3163,188.11,188.04,5.3179]
[1722265138234,14.0698759,188.16,188.05,5.3176]
[1722265138419,14.0698759,188.16,188.02,14.35933273]
[1722265138769,16.4563,188.11,188.0,6.4795]
[1722265138948,16.01,188.04,187.95,5.3205]
[1722265139322,5.3183,188.03,187.96,5.3202]
[1722265139533,5.318,188.04,187.97,13.2998]
[1722265139849,5.3179,188.05,187.97,13.2998]
[1722265140139,44.0163,188.11,187.97,13.2998]
[1722265140320,5.3166,188.09,187.98,1.0637055]
[1722265140524,16.4563,188.11,187.95,20.0]
[1722265140840,20.0,188.1,188.0,18.616]
[1722265141025,5.3171,188.07,188.01,6.38239315]
[1722265141425,5.3169,188.08,188.01,5.3188]
[1722265141839,5.3168,188.09,188.01,1.06362048]
[1722265142054,16.01,188.12,188.03,5.3182]
[1722265142344,20.0,188.11,188.03,5.3182]
[1722265142547,36.01,188.11,188.01,5.3186]
[1722265142751,5.3169,188.08,188.01,5.3186]
[1722265142928,5.3173,188.07,188.0,5.3191]
[1722265143250,5.3158,188.12,188.06,5.3171]
[1722265143430,5.3154,188.14,188.07,5.3171]
[1722265143945,5.3155,188.13,188.07,5.317]
[1722265144332,5.3152,188.14,188.08,5.3167]
[1722265144730,6.0976759,188.16,188.09,5.3165]
[1722265144937,6.0976759,188.16,188.1,5.3162]
[1722265145152,0.7828759,188.16,188.12,5.3154]
[1722265145631,0.7828759,188.16,188.09,13.2914]
[1722265146035,0.7828759,188.16,188.15,5.3149]
[1722265146636,0.7828759,188.16,188.15,25.3149]
[1722265147247,0.7828759,188.16,188.15,5.3149]
[1722265150832,0.7828759,188.16,188.15,6.37770463]
[1722265151032,0.7828759,188.16,188.15,5.3149]
[1722265151236,13.2758,188.32,188.15,26.1337]
[1722265151536,13.2758,188.32,188.16,20.0]
[1722265151840,13.2758,188.32,188.14,0.17]
[1722265151841,16.01,188.23,188.12,26.5782]
[1722265152039,5.3132,188.21,188.12,39.867]
[1722265152242,5.3133,188.21,188.15,13.2872]
[1722265152443,13.2797,188.26,188.15,18.602]
[1722265152757,36.01,188.25,188.16,5.3145]
[1722265152933,16.01,188.23,188.15,18.602]
[1722265153137,50.3131,188.22,188.15,18.602]
[1722265153333,5.3133,188.21,188.15,18.602]
[1722265153556,5.3133,188.21,188.15,13.2872]
[1722265153740,20.0,188.25,188.12,26.5782]
[1722265153741,16.01,188.33,188.18,16.4418]
[1722265154052,382.4,188.41,188.2,13.283]
[1722265154053,5.3109,188.29,188.2,13.283]
[1722265154256,27.56,188.4,188.21,5.3132]
[1722265154257,13.2745,188.33,188.21,5.3132]
[1722265154459,5.3113,188.28,188.21,5.3132]
[1722265154638,5.3114,188.28,188.2,13.283]
[1722265154839,21.3212,188.28,188.2,13.283]
[1722265155149,6.2456,188.32,188.2,13.283]
[1722265155350,5.3106,188.31,188.24,5.3121]
[1722265155658,20.17,188.3,188.21,5.3132]
[1722265155854,5.3106,188.3,188.23,5.3124]
[1722265156164,5.3095,188.34,188.27,5.3114]
[1722265156342,5.3099,188.33,188.27,5.3114]
[1722265156548,5.3095,188.34,188.27,5.3114]
[1722265156853,5.3099,188.33,188.27,5.3114]
[1722265157251,6.0921759,188.35,188.27,13.2786]
[1722265157433,6.0921759,188.35,188.28,5.311]
[1722265157833,5.3096,188.34,188.28,5.311]
[1722265158047,6.0921759,188.35,188.29,5.3109]
[1722265158429,5.3095,188.34,188.27,13.2786]
[1722265158633,5.3095,188.34,188.27,18.59]
[1722265158854,5.3099,188.33,188.27,13.2786]
[1722265159046,20.0,188.32,188.27,18.59]
[1722265159360,20.0,188.32,188.19,27.56]
[1722265159361,5.3104,188.31,188.23,13.2812]
[1722265159549,5.3107,188.3,188.23,18.5935]
[1722265159858,36.01,188.32,188.19,13.2837]
[1722265160063,45.34,188.31,188.2,20.0]
[1722265160250,5.3107,188.3,188.24,5.3122]
[1722265160442,5.3107,188.3,188.22,13.2823]
[1722265160642,5.3107,188.3,188.23,5.3124]
[1722265160851,5.3107,188.3,188.22,13.2823]
[1722265161439,5.3107,188.3,188.23,5.3126]
[1722265161848,45.17,188.31,188.23,1.06238797]
[1722265162160,25.3103,188.32,188.26,5.3117]
[1722265162354,36.01,188.32,188.21,13.2829]
[1722265162552,5.3107,188.3,188.24,5.3123]
[1722265163444,5.311,188.29,188.21,13.2829]
[1722265164146,61.01,188.31,188.21,14.34531788]
[1722265164452,61.01,188.31,188.23,5.3124]
[1722265164766,5.3109,188.29,188.23,5.3124]
[1722265165141,25.3103,188.32,188.24,13.2808]
[1722265165371,5.3105,188.31,188.24,18.5929]
[1722265165662,5.3105,188.31,188.25,5.3118]
[1722265166244,20.0,188.32,188.24,13.2808]
[1722265166440,5.3101,188.32,188.26,5.3117]
[1722265166636,16.7928759,188.35,188.26,13.2789]
[1722265166841,5.3095,188.34,188.28,13.2774]
[1722265167240,5.3099,188.33,188.28,13.2774]
[1722265167660,0.7828759,188.35,188.29,5.3109]
[1722265167862,0.7828759,188.35,188.28,13.2774]
[1722265167863,0.7828759,188.35,188.3,5.3106]
[1722265168046,0.7828759,188.35,188.28,13.2774]
[1722265168244,0.7828759,188.35,188.31,5.3103]
[1722265168548,0.7828759,188.35,188.28,13.2774]
[1722265169561,0.7828759,188.35,188.31,5.3103]
[1722265169765,0.7828759,188.35,188.24,13.2802]